[Event "Early-Titled-Tuesday-Blitz-April-02-2024"]
[Site "Chess.com"]
[Date "2024.04.02"]
[Round "6"]
[White "Rawnsdale"]
[Black "SharathRk6"]
[Result "0-1"]
[WhiteElo "2546"]
[BlackElo "2426"]
[TimeControl "180+1"]
[EndTime "9:07:53 PDT"]
[Termination "SharathRk6 won by checkmate"]

1. e4 {[%clk 0:03:00.9]} 1... e5 {[%clk 0:02:59]} 2. Nf3 {[%clk 0:03:01.1]} 2...
Nc6 {[%clk 0:02:59.1]} 3. Bb5 {[%clk 0:03:01.4]} 3... a6 {[%clk 0:02:59.1]} 4.
Ba4 {[%clk 0:03:01.8]} 4... Nf6 {[%clk 0:02:59.6]} 5. O-O {[%clk 0:03:02]} 5...
b5 {[%clk 0:02:59.9]} 6. Bb3 {[%clk 0:03:02.1]} 6... Bc5 {[%clk 0:02:59.8]} 7.
c3 {[%clk 0:03:01.5]} 7... d6 {[%clk 0:02:59.8]} 8. d4 {[%clk 0:02:59.1]} 8...
Bb6 {[%clk 0:02:59.3]} 9. h3 {[%clk 0:02:52.1]} 9... O-O {[%clk 0:02:56.1]} 10.
Re1 {[%clk 0:02:51.3]} 10... h6 {[%clk 0:02:56.1]} 11. a4 {[%clk 0:02:49.9]}
11... Bb7 {[%clk 0:02:56]} 12. Be3 {[%clk 0:02:33.8]} 12... Re8 {[%clk 0:02:51]}
13. Nbd2 {[%clk 0:01:30.2]} 13... exd4 {[%clk 0:02:44.5]} 14. cxd4 {[%clk
0:01:29.4]} 14... Nxe4 {[%clk 0:02:44.7]} 15. Nxe4 {[%clk 0:01:23.5]} 15... Rxe4
{[%clk 0:02:44.4]} 16. Bd5 {[%clk 0:01:23.8]} 16... Re8 {[%clk 0:02:41.2]} 17.
Qc1 {[%clk 0:01:13.4]} 17... Na5 {[%clk 0:02:27.3]} 18. Bxb7 {[%clk 0:01:08.1]}
18... Nxb7 {[%clk 0:02:26.7]} 19. axb5 {[%clk 0:01:08.4]} 19... axb5 {[%clk
0:02:26.5]} 20. Rxa8 {[%clk 0:01:08.8]} 20... Qxa8 {[%clk 0:02:26.7]} 21. Qc6
{[%clk 0:01:08.2]} 21... b4 {[%clk 0:02:12.6]} 22. Nh4 {[%clk 0:01:02.8]} 22...
Bxd4 {[%clk 0:01:46.2]} 23. Nf5 {[%clk 0:00:57.8]} 23... Bxe3 {[%clk 0:01:46]}
24. Nxe3 {[%clk 0:00:44.6]} 24... Nc5 {[%clk 0:01:34.2]} 25. Qxc7 {[%clk
0:00:42.4]} 25... Nd3 {[%clk 0:01:30.4]} 26. Re2 {[%clk 0:00:25.5]} 26... Nf4
{[%clk 0:01:25.1]} 27. Rd2 {[%clk 0:00:14.5]} 27... b3 {[%clk 0:00:27.2]} 28.
Qxd6 {[%clk 0:00:13.3]} 28... Ne6 {[%clk 0:00:26.6]} 29. Qg3 {[%clk 0:00:12.4]}
29... Qe4 {[%clk 0:00:22.6]} 30. Kh2 {[%clk 0:00:09.6]} 30... Rc8 {[%clk
0:00:21.3]} 31. Rd7 {[%clk 0:00:08.7]} 31... Qf4 {[%clk 0:00:19]} 32. Rb7 {[%clk
0:00:05.9]} 32... Qxg3+ {[%clk 0:00:16.3]} 33. Kxg3 {[%clk 0:00:06.8]} 33... Nd4
{[%clk 0:00:15.2]} 34. Rb4 {[%clk 0:00:05.7]} 34... Ne2+ {[%clk 0:00:13.6]} 35.
Kf3 {[%clk 0:00:05.7]} 35... Nc1 {[%clk 0:00:13.6]} 36. Nd5 {[%clk 0:00:04.9]}
36... Rc2 {[%clk 0:00:13.7]} 37. Ne7+ {[%clk 0:00:04.1]} 37... Kh7 {[%clk
0:00:13.7]} 38. Nd5 {[%clk 0:00:02.6]} 38... Rxb2 {[%clk 0:00:13.2]} 39. Ne3
{[%clk 0:00:03]} 39... Rxf2+ {[%clk 0:00:12.3]} 40. Kxf2 {[%clk 0:00:03.1]}
40... Nd3+ {[%clk 0:00:12.5]} 41. Ke2 {[%clk 0:00:04]} 41... Nxb4 {[%clk
0:00:13.3]} 42. Kd2 {[%clk 0:00:04.1]} 42... Nc6 {[%clk 0:00:11.5]} 43. Kc3
{[%clk 0:00:04.5]} 43... Na5 {[%clk 0:00:12.1]} 44. Nd5 {[%clk 0:00:03.8]} 44...
f5 {[%clk 0:00:11.7]} 45. Ne7 {[%clk 0:00:03.9]} 45... g6 {[%clk 0:00:11.3]} 46.
Nd5 {[%clk 0:00:04]} 46... Kg7 {[%clk 0:00:11.7]} 47. Ne3 {[%clk 0:00:04.4]}
47... Kf6 {[%clk 0:00:11.9]} 48. Nd1 {[%clk 0:00:05.1]} 48... Ke5 {[%clk
0:00:11.4]} 49. Kd3 {[%clk 0:00:05.6]} 49... g5 {[%clk 0:00:11.2]} 50. Nb2
{[%clk 0:00:05.8]} 50... Kf4 {[%clk 0:00:10.9]} 51. Ke2 {[%clk 0:00:06.1]} 51...
Kg3 {[%clk 0:00:11.2]} 52. Kf1 {[%clk 0:00:06.7]} 52... f4 {[%clk 0:00:11.7]}
53. Nd3 {[%clk 0:00:06.7]} 53... Nc6 {[%clk 0:00:11.9]} 54. Nb2 {[%clk
0:00:06.2]} 54... Nd4 {[%clk 0:00:12]} 55. Kg1 {[%clk 0:00:06.6]} 55... h5
{[%clk 0:00:12.3]} 56. Nd3 {[%clk 0:00:06.3]} 56... g4 {[%clk 0:00:12.6]} 57.
hxg4 {[%clk 0:00:05.4]} 57... hxg4 {[%clk 0:00:13.5]} 58. Nb2 {[%clk 0:00:04.3]}
58... f3 {[%clk 0:00:13.8]} 59. gxf3 {[%clk 0:00:04.8]} 59... gxf3 {[%clk
0:00:14.3]} 60. Kf1 {[%clk 0:00:05.5]} 60... f2 {[%clk 0:00:14.1]} 61. Nd3
{[%clk 0:00:06.1]} 61... Nf5 {[%clk 0:00:14.3]} 62. Ke2 {[%clk 0:00:04.9]} 62...
Kg2 {[%clk 0:00:14.3]} 63. Nxf2 {[%clk 0:00:05.3]} 63... b2 {[%clk 0:00:12.7]}
64. Nd3 {[%clk 0:00:04.2]} 64... b1=Q {[%clk 0:00:12.8]} 65. Nf4+ {[%clk
0:00:04.7]} 65... Kg3 {[%clk 0:00:13.1]} 66. Nd3 {[%clk 0:00:04.5]} 66... Nd4+
{[%clk 0:00:12.7]} 67. Ke3 {[%clk 0:00:04.6]} 67... Nf5+ {[%clk 0:00:13.1]} 68.
Kd2 {[%clk 0:00:03.7]} 68... Qa2+ {[%clk 0:00:12.9]} 69. Ke1 {[%clk 0:00:03.5]}
69... Kf3 {[%clk 0:00:11.6]} 70. Ne5+ {[%clk 0:00:03.2]} 70... Ke3 {[%clk
0:00:12]} 71. Ng4+ {[%clk 0:00:03.2]} 71... Kf4 {[%clk 0:00:12.7]} 72. Nf2
{[%clk 0:00:03.3]} 72... Nd4 {[%clk 0:00:13.3]} 73. Nd3+ {[%clk 0:00:03.4]}
73... Ke3 {[%clk 0:00:13.4]} 74. Nc1 {[%clk 0:00:02.9]} 74... Qd2+ {[%clk
0:00:12.4]} 75. Kf1 {[%clk 0:00:03.4]} 75... Qf2# {[%clk 0:00:13]} 0-1

[Event "Early-Titled-Tuesday-Blitz-April-02-2024"]
[Site "Chess.com"]
[Date "2024.04.02"]
[Round "6"]
[White "ViratKohl_i"]
[Black "JJDAREK"]
[Result "1-0"]
[WhiteElo "2510"]
[BlackElo "2339"]
[TimeControl "180+1"]
[EndTime "9:07:53 PDT"]
[Termination "ViratKohl_i won on time"]

1. c4 {[%clk 0:03:00.9]} 1... g6 {[%clk 0:02:56.3]} 2. Nc3 {[%clk 0:02:58.4]}
2... Bg7 {[%clk 0:02:56.1]} 3. b3 {[%clk 0:02:58.2]} 3... c5 {[%clk 0:02:48.3]}
4. Bb2 {[%clk 0:02:56.9]} 4... Nc6 {[%clk 0:02:48.5]} 5. g3 {[%clk 0:02:53.3]}
5... e6 {[%clk 0:02:48.3]} 6. Bg2 {[%clk 0:02:51.2]} 6... Nge7 {[%clk
0:02:48.7]} 7. Nf3 {[%clk 0:02:50.1]} 7... O-O {[%clk 0:02:48.4]} 8. O-O {[%clk
0:02:42.3]} 8... b6 {[%clk 0:02:48.5]} 9. e3 {[%clk 0:02:38]} 9... Bb7 {[%clk
0:02:47.6]} 10. d4 {[%clk 0:02:34]} 10... cxd4 {[%clk 0:02:44.3]} 11. Nxd4
{[%clk 0:02:33.1]} 11... Na5 {[%clk 0:02:17.1]} 12. Bxb7 {[%clk 0:02:23.8]}
12... Nxb7 {[%clk 0:02:18]} 13. Qf3 {[%clk 0:02:22.2]} 13... d5 {[%clk
0:02:15.2]} 14. cxd5 {[%clk 0:02:21.3]} 14... Nxd5 {[%clk 0:02:16.1]} 15. Nxd5
{[%clk 0:02:20.6]} 15... Qxd5 {[%clk 0:02:14.7]} 16. Qxd5 {[%clk 0:02:15.8]}
16... exd5 {[%clk 0:02:15.6]} 17. Rfd1 {[%clk 0:02:01.6]} 17... Rac8 {[%clk
0:02:08.9]} 18. Rac1 {[%clk 0:01:52.5]} 18... Nc5 {[%clk 0:02:05.8]} 19. Ba3
{[%clk 0:01:47.9]} 19... Rfd8 {[%clk 0:02:00.1]} 20. Ne2 {[%clk 0:01:42.8]}
20... h5 {[%clk 0:01:44.8]} 21. Nf4 {[%clk 0:01:37.9]} 21... d4 {[%clk
0:01:43.8]} 22. Bxc5 {[%clk 0:01:30.5]} 22... bxc5 {[%clk 0:01:38.9]} 23. e4
{[%clk 0:01:27.3]} 23... Bh6 {[%clk 0:01:31.4]} 24. Rc4 {[%clk 0:01:24.7]} 24...
Bxf4 {[%clk 0:01:31.2]} 25. gxf4 {[%clk 0:01:24.4]} 25... a5 {[%clk 0:00:26.7]}
26. f3 {[%clk 0:01:19.2]} 26... Rd6 {[%clk 0:00:26]} 27. Kf2 {[%clk 0:01:16.6]}
27... Kg7 {[%clk 0:00:25]} 28. Rg1 {[%clk 0:00:55.5]} 28... Rb6 {[%clk
0:00:22.3]} 29. f5 {[%clk 0:00:51.1]} 29... Rb4 {[%clk 0:00:21.6]} 30. Rc2
{[%clk 0:00:40.2]} 30... a4 {[%clk 0:00:20.1]} 31. bxa4 {[%clk 0:00:37.3]} 31...
Rxa4 {[%clk 0:00:19.8]} 32. fxg6 {[%clk 0:00:37.7]} 32... fxg6 {[%clk
0:00:19.5]} 33. Rd1 {[%clk 0:00:34.4]} 33... Ra3 {[%clk 0:00:17.9]} 34. Rxd4
{[%clk 0:00:31.8]} 34... cxd4 {[%clk 0:00:16.9]} 35. Rxc8 {[%clk 0:00:31.7]}
35... Rxa2+ {[%clk 0:00:17.7]} 36. Kg3 {[%clk 0:00:31.6]} 36... d3 {[%clk
0:00:18.2]} 37. Rd8 {[%clk 0:00:30.7]} 37... Rd2 {[%clk 0:00:14.1]} 38. h4
{[%clk 0:00:28.8]} 38... Kf6 {[%clk 0:00:14.4]} 39. f4 {[%clk 0:00:21.8]} 39...
Rd1 {[%clk 0:00:12.9]} 40. Kf3 {[%clk 0:00:21.1]} 40... Rh1 {[%clk 0:00:12.2]}
41. Rxd3 {[%clk 0:00:18.3]} 41... Rh3+ {[%clk 0:00:10.9]} 42. Ke2 {[%clk
0:00:16.6]} 42... Rxh4 {[%clk 0:00:11.8]} 43. Rd6+ {[%clk 0:00:14.8]} 43... Kf7
{[%clk 0:00:11.4]} 44. Ke3 {[%clk 0:00:14.4]} 44... Rh3+ {[%clk 0:00:11.6]} 45.
Kd4 {[%clk 0:00:14.1]} 45... h4 {[%clk 0:00:11.3]} 46. Ke5 {[%clk 0:00:13.6]}
46... Rf3 {[%clk 0:00:05.5]} 47. Rd7+ {[%clk 0:00:12.7]} 47... Kg8 {[%clk
0:00:05.5]} 48. Rd6 {[%clk 0:00:11.1]} 48... Kg7 {[%clk 0:00:04.8]} 49. Rd7+
{[%clk 0:00:11.5]} 49... Kg8 {[%clk 0:00:05.2]} 50. Ra7 {[%clk 0:00:11.5]} 50...
h3 {[%clk 0:00:04.9]} 51. Ra2 {[%clk 0:00:10.5]} 51... Kg7 {[%clk 0:00:04.3]}
52. Ra1 {[%clk 0:00:10.2]} 52... Kh6 {[%clk 0:00:04.4]} 53. Rh1 {[%clk
0:00:08.7]} 53... Kh5 {[%clk 0:00:04.3]} 54. Rg1 {[%clk 0:00:08]} 54... h2
{[%clk 0:00:01.6]} 55. Rh1 {[%clk 0:00:08.1]} 55... Rf2 {[%clk 0:00:02.2]} 56.
f5 {[%clk 0:00:07.8]} 56... gxf5 {[%clk 0:00:02.2]} 57. exf5 {[%clk 0:00:08.4]}
57... Kg5 {[%clk 0:00:02.4]} 58. f6 {[%clk 0:00:08.5]} 1-0

[Event "Early-Titled-Tuesday-Blitz-April-02-2024"]
[Site "Chess.com"]
[Date "2024.04.02"]
[Round "6"]
[White "LeoLV10"]
[Black "edgarhay012"]
[Result "0-1"]
[WhiteElo "2514"]
[BlackElo "2622"]
[TimeControl "180+1"]
[EndTime "9:07:55 PDT"]
[Termination "edgarhay012 won by resignation"]

1. e4 {[%clk 0:03:00.9]} 1... e6 {[%clk 0:02:59.3]} 2. d4 {[%clk 0:03:00.3]}
2... d5 {[%clk 0:02:59.9]} 3. e5 {[%clk 0:03:00.7]} 3... c5 {[%clk 0:02:59.8]}
4. c3 {[%clk 0:03:01.5]} 4... Qb6 {[%clk 0:03:00.4]} 5. Nf3 {[%clk 0:03:01.8]}
5... Nc6 {[%clk 0:03:00.8]} 6. a3 {[%clk 0:03:00.8]} 6... Nh6 {[%clk 0:03:00.3]}
7. Bd3 {[%clk 0:02:55.2]} 7... cxd4 {[%clk 0:02:55.4]} 8. O-O {[%clk 0:02:54.9]}
8... Nf5 {[%clk 0:02:54.9]} 9. Bxf5 {[%clk 0:02:53.5]} 9... exf5 {[%clk
0:02:55.8]} 10. cxd4 {[%clk 0:02:54.1]} 10... Be6 {[%clk 0:02:55.6]} 11. b4
{[%clk 0:02:53.9]} 11... Be7 {[%clk 0:02:55.6]} 12. Nc3 {[%clk 0:02:53]} 12...
O-O {[%clk 0:02:55.8]} 13. Qd3 {[%clk 0:02:52.1]} 13... Rac8 {[%clk 0:02:55.4]}
14. Bd2 {[%clk 0:02:44]} 14... h6 {[%clk 0:02:52.1]} 15. Na4 {[%clk 0:02:42.6]}
15... Qd8 {[%clk 0:02:52.1]} 16. g3 {[%clk 0:02:35.4]} 16... b6 {[%clk
0:02:48.6]} 17. Rac1 {[%clk 0:02:33.5]} 17... Qd7 {[%clk 0:02:48.9]} 18. Nc3
{[%clk 0:02:32.1]} 18... Rfd8 {[%clk 0:02:37.5]} 19. h4 {[%clk 0:02:27.1]} 19...
Bf8 {[%clk 0:02:32.7]} 20. Ne2 {[%clk 0:02:25.9]} 20... f4 {[%clk 0:02:26.2]}
21. Nxf4 {[%clk 0:02:20.6]} 21... Bf5 {[%clk 0:02:26.7]} 22. Qe3 {[%clk
0:02:19.6]} 22... Be4 {[%clk 0:02:26.6]} 23. Ne1 {[%clk 0:02:08.9]} 23... Ne7
{[%clk 0:02:09.5]} 24. f3 {[%clk 0:02:03.3]} 24... Bh7 {[%clk 0:02:07.3]} 25. g4
{[%clk 0:01:50.3]} 25... Qa4 {[%clk 0:01:52.2]} 26. Neg2 {[%clk 0:01:44.5]}
26... Rc4 {[%clk 0:01:44.8]} 27. e6 {[%clk 0:01:26.4]} 27... f6 {[%clk
0:01:43.4]} 28. Rfe1 {[%clk 0:01:16.5]} 28... Rdc8 {[%clk 0:01:24.9]} 29. h5
{[%clk 0:01:12.9]} 29... R8c7 {[%clk 0:01:20.1]} 30. Nh4 {[%clk 0:01:09.1]}
30... Bc2 {[%clk 0:01:18.2]} 31. Nhg6 {[%clk 0:01:05.5]} 31... Nxg6 {[%clk
0:01:07.5]} 32. hxg6 {[%clk 0:00:54]} 32... Qc6 {[%clk 0:01:01.8]} 33. Re2
{[%clk 0:00:27]} 33... Bd6 {[%clk 0:01:01.4]} 34. Rce1 {[%clk 0:00:25.4]} 34...
Re7 {[%clk 0:00:57.3]} 35. Kg2 {[%clk 0:00:22.1]} 35... a6 {[%clk 0:00:42.8]}
36. Nh5 {[%clk 0:00:14]} 36... Bxg6 {[%clk 0:00:40.7]} 37. Nxf6+ {[%clk
0:00:10.9]} 37... gxf6 {[%clk 0:00:41.6]} 38. Qxh6 {[%clk 0:00:11.2]} 38... Rg7
{[%clk 0:00:42.2]} 39. e7 {[%clk 0:00:11.7]} 39... Qe8 {[%clk 0:00:42.1]} 40.
Bf4 {[%clk 0:00:10.3]} 40... Bxf4 {[%clk 0:00:32.5]} 41. Qxf4 {[%clk 0:00:09.1]}
41... Rc6 {[%clk 0:00:33.1]} 42. Kf2 {[%clk 0:00:04.7]} 42... Bh7 {[%clk
0:00:26]} 43. Rh1 {[%clk 0:00:03.9]} 43... Rxe7 {[%clk 0:00:24.3]} 44. Rxe7
{[%clk 0:00:04]} 44... Qxe7 {[%clk 0:00:25.2]} 45. Qh6 {[%clk 0:00:04.6]} 45...
Rc2+ {[%clk 0:00:24.9]} 46. Kg3 {[%clk 0:00:04.7]} 46... Qc7+ {[%clk 0:00:24.6]}
47. f4 {[%clk 0:00:04.1]} 47... Rc3+ {[%clk 0:00:20.3]} 48. Kh4 {[%clk
0:00:04.7]} 48... Qg7 {[%clk 0:00:19.8]} 49. Qh5 {[%clk 0:00:03.3]} 49... Bg6
{[%clk 0:00:19.8]} 50. Qxd5+ {[%clk 0:00:03.3]} 50... Bf7 {[%clk 0:00:17.4]} 51.
Qd8+ {[%clk 0:00:03.9]} 51... Qf8 {[%clk 0:00:17.6]} 52. Qxf8+ {[%clk
0:00:04.2]} 52... Kxf8 {[%clk 0:00:18.5]} 53. g5 {[%clk 0:00:04.6]} 53... fxg5+
{[%clk 0:00:16.4]} 54. Kxg5 {[%clk 0:00:05.5]} 54... Ke7 {[%clk 0:00:15.3]} 55.
f5 {[%clk 0:00:05.3]} 55... Rg3+ {[%clk 0:00:15.4]} 56. Kf4 {[%clk 0:00:05.4]}
56... Rg2 {[%clk 0:00:15.8]} 57. Re1+ {[%clk 0:00:04.8]} 57... Kd6 {[%clk
0:00:16.2]} 58. Rc1 {[%clk 0:00:05.7]} 58... Bd5 {[%clk 0:00:16.2]} 59. Rc8
{[%clk 0:00:05.9]} 59... Rf2+ {[%clk 0:00:16.2]} 60. Kg5 {[%clk 0:00:06.5]}
60... Be4 {[%clk 0:00:16.8]} 61. f6 {[%clk 0:00:06.8]} 61... Rf5+ {[%clk
0:00:15.6]} 62. Kg4 {[%clk 0:00:07.2]} 62... Rxf6 {[%clk 0:00:15.4]} 63. Rd8+
{[%clk 0:00:07.9]} 63... Kc7 {[%clk 0:00:15.4]} 64. Re8 {[%clk 0:00:08]} 64...
Bc6 {[%clk 0:00:15.5]} 65. Re7+ {[%clk 0:00:08.3]} 65... Bd7+ {[%clk 0:00:15.6]}
66. Kg3 {[%clk 0:00:08.7]} 66... Rd6 {[%clk 0:00:16.2]} 67. Re4 {[%clk
0:00:08.6]} 67... Kc6 {[%clk 0:00:16.8]} 68. Kf3 {[%clk 0:00:07.7]} 68... Kb5
{[%clk 0:00:17.2]} 69. Ke3 {[%clk 0:00:07.9]} 69... Ka4 {[%clk 0:00:17.6]} 70.
b5 {[%clk 0:00:07.9]} 70... Bxb5 {[%clk 0:00:16.2]} 71. Re7 {[%clk 0:00:06]}
71... Kxa3 {[%clk 0:00:15.7]} 0-1

[Event "Early-Titled-Tuesday-Blitz-April-02-2024"]
[Site "Chess.com"]
[Date "2024.04.02"]
[Round "6"]
[White "SharapovEvgeny"]
[Black "ChristianArca"]
[Result "1-0"]
[WhiteElo "2562"]
[BlackElo "2654"]
[TimeControl "180+1"]
[EndTime "9:07:58 PDT"]
[Termination "SharapovEvgeny won by resignation"]

1. b3 {[%clk 0:03:00.2]} 1... e5 {[%clk 0:02:58.8]} 2. Bb2 {[%clk 0:03:00.3]}
2... Nc6 {[%clk 0:02:59.7]} 3. Nf3 {[%clk 0:03:00.3]} 3... e4 {[%clk 0:02:58.2]}
4. Nd4 {[%clk 0:02:59.9]} 4... d5 {[%clk 0:02:56.6]} 5. Nxc6 {[%clk 0:02:59.5]}
5... bxc6 {[%clk 0:02:57.4]} 6. d3 {[%clk 0:02:59.8]} 6... exd3 {[%clk 0:02:49]}
7. exd3 {[%clk 0:02:59.5]} 7... Nf6 {[%clk 0:02:49.9]} 8. Be2 {[%clk 0:02:58.7]}
8... Bd6 {[%clk 0:02:49.8]} 9. O-O {[%clk 0:02:59]} 9... O-O {[%clk 0:02:49.4]}
10. Nd2 {[%clk 0:02:58.9]} 10... Bf5 {[%clk 0:02:47.9]} 11. Bf3 {[%clk
0:02:58.4]} 11... h6 {[%clk 0:02:47.5]} 12. h3 {[%clk 0:02:58.4]} 12... c5
{[%clk 0:02:42.2]} 13. Re1 {[%clk 0:02:57.9]} 13... Rb8 {[%clk 0:02:40.9]} 14.
Bxf6 {[%clk 0:02:54.5]} 14... Qxf6 {[%clk 0:02:41.8]} 15. Bxd5 {[%clk
0:02:54.8]} 15... Qd4 {[%clk 0:02:40.6]} 16. Be4 {[%clk 0:02:50.5]} 16... Be6
{[%clk 0:02:33.6]} 17. Nf3 {[%clk 0:02:48.8]} 17... Qf6 {[%clk 0:02:33.6]} 18.
c4 {[%clk 0:02:35.1]} 18... Rbd8 {[%clk 0:02:27.2]} 19. Qc2 {[%clk 0:02:34.3]}
19... Bf4 {[%clk 0:02:18.5]} 20. Rad1 {[%clk 0:02:31.4]} 20... g6 {[%clk
0:02:12.9]} 21. Qb1 {[%clk 0:02:21.4]} 21... Rd6 {[%clk 0:02:11.9]} 22. Qa1
{[%clk 0:02:19.3]} 22... Qd8 {[%clk 0:01:56.4]} 23. d4 {[%clk 0:02:15.5]} 23...
cxd4 {[%clk 0:01:50.9]} 24. Rxd4 {[%clk 0:02:14.3]} 24... c5 {[%clk 0:01:48.4]}
25. Rxd6 {[%clk 0:02:11.6]} 25... Bxd6 {[%clk 0:01:49.3]} 26. Rd1 {[%clk
0:02:09.3]} 26... Qc7 {[%clk 0:01:37.4]} 27. Bd5 {[%clk 0:02:08.7]} 27... Bf5
{[%clk 0:01:34]} 28. Nh4 {[%clk 0:02:04.1]} 28... Be5 {[%clk 0:01:21.9]} 29. Qc1
{[%clk 0:01:58.3]} 29... Bf4 {[%clk 0:01:15.2]} 30. Qc3 {[%clk 0:01:53.1]} 30...
Be5 {[%clk 0:01:15.2]} 31. Qf3 {[%clk 0:01:50.5]} 31... Bc2 {[%clk 0:00:26.7]}
32. Rc1 {[%clk 0:01:49.7]} 32... Qe7 {[%clk 0:00:27.3]} 33. g3 {[%clk
0:01:37.9]} 33... Bf5 {[%clk 0:00:07.4]} 34. Nxf5 {[%clk 0:01:35.9]} 34... gxf5
{[%clk 0:00:08.3]} 35. Qxf5 {[%clk 0:01:34.7]} 35... Bd4 {[%clk 0:00:08.7]} 36.
Be4 {[%clk 0:01:29.2]} 36... f6 {[%clk 0:00:05.9]} 37. Qg6+ {[%clk 0:01:25.2]}
37... Qg7 {[%clk 0:00:06]} 38. Bd5+ {[%clk 0:01:24.9]} 38... Kh8 {[%clk
0:00:06.2]} 39. Qxg7+ {[%clk 0:01:25.2]} 39... Kxg7 {[%clk 0:00:06.9]} 40. Re1
{[%clk 0:01:25.3]} 40... f5 {[%clk 0:00:04.8]} 41. Re7+ {[%clk 0:01:23.7]} 41...
Kg6 {[%clk 0:00:05.4]} 42. Re6+ {[%clk 0:01:19.5]} 42... Kg7 {[%clk 0:00:03]}
43. Kg2 {[%clk 0:01:18.5]} 43... f4 {[%clk 0:00:03.5]} 44. g4 {[%clk 0:01:18.8]}
44... Rf6 {[%clk 0:00:01.6]} 45. Re7+ {[%clk 0:01:16.3]} 45... Kg6 {[%clk
0:00:02.5]} 46. Rxa7 {[%clk 0:01:15.9]} 46... Kg5 {[%clk 0:00:02.4]} 47. Rf7
{[%clk 0:01:12.3]} 47... f3+ {[%clk 0:00:01.8]} 48. Kf1 {[%clk 0:01:07.8]} 48...
Ra6 {[%clk 0:00:02.1]} 49. Rf5+ {[%clk 0:01:04.9]} 49... Kg6 {[%clk 0:00:01.3]}
50. Rxf3 {[%clk 0:01:04.6]} 50... Rxa2 {[%clk 0:00:01.2]} 51. Kg2 {[%clk
0:01:04]} 51... Rb2 {[%clk 0:00:01.2]} 52. Be4+ {[%clk 0:01:01.7]} 52... Kg7
{[%clk 0:00:01.7]} 53. Kg3 {[%clk 0:00:59]} 53... Be5+ {[%clk 0:00:01.7]} 54.
Kg2 {[%clk 0:00:58]} 54... Bd4 {[%clk 0:00:02.2]} 55. Bd5 {[%clk 0:00:58.2]}
55... Kg6 {[%clk 0:00:02]} 56. h4 {[%clk 0:00:58.5]} 56... Kg7 {[%clk
0:00:02.2]} 57. h5 {[%clk 0:00:58]} 57... Kh8 {[%clk 0:00:02.8]} 58. Kg3 {[%clk
0:00:47.2]} 58... Be5+ {[%clk 0:00:02.9]} 59. Kh3 {[%clk 0:00:45.4]} 59... Bd4
{[%clk 0:00:03.2]} 60. Kg2 {[%clk 0:00:45.3]} 60... Kg7 {[%clk 0:00:02.9]} 61.
Rf7+ {[%clk 0:00:43.7]} 61... Kh8 {[%clk 0:00:03.4]} 62. Kg3 {[%clk 0:00:43.1]}
62... Be5+ {[%clk 0:00:03.3]} 63. f4 {[%clk 0:00:42.1]} 63... Rxb3+ {[%clk
0:00:04]} 64. Kg2 {[%clk 0:00:40]} 64... Bd4 {[%clk 0:00:04.9]} 65. g5 {[%clk
0:00:40.3]} 65... Rb2+ {[%clk 0:00:04.9]} 66. Kf3 {[%clk 0:00:37.6]} 66... Rf2+
{[%clk 0:00:04.8]} 67. Ke4 {[%clk 0:00:37.6]} 67... hxg5 {[%clk 0:00:05]} 68.
fxg5 {[%clk 0:00:38.1]} 68... Rxf7 {[%clk 0:00:05]} 69. Bxf7 {[%clk 0:00:37.9]}
69... Kg7 {[%clk 0:00:05.9]} 70. Bd5 {[%clk 0:00:37.4]} 70... Bb2 {[%clk
0:00:06.2]} 71. Kf5 {[%clk 0:00:37.7]} 71... Bc1 {[%clk 0:00:06.2]} 72. h6+
{[%clk 0:00:37.9]} 72... Kh7 {[%clk 0:00:06.7]} 73. Kg4 {[%clk 0:00:38.1]} 73...
Bd2 {[%clk 0:00:06]} 74. Kh5 {[%clk 0:00:38.2]} 1-0